fUSD/lending_fUSD_20251118
["ID","MTS","AMOUNT","RATE_DAILY","PERIOD"]
[394339013,1763471451963,-151.0,0.000248,7]
[394339014,1763471451972,-235.110002,0.000248,7]
[394339015,1763471451981,-151.0,0.000248,7]
[394339016,1763471451990,-151.0,0.000248,7]
[394339017,1763471451999,-151.0,0.000248,7]
[394339018,1763471452009,-151.0,0.000248,7]
[394339019,1763471452018,-151.0,0.000248,7]
[394339020,1763471452027,-178.428077,0.000248,7]
[394339021,1763471452037,-200.227909,0.000248,7]
[394339022,1763471452047,-200.227909,0.000248,7]
[394339023,1763471452057,-200.227909,0.000248,7]
[394339024,1763471452066,-165.88479,0.000248,7]
[394339025,1763471452075,-151.0,0.000248,7]
[394339026,1763471452084,-200.227917,0.000248,7]
[394339027,1763471452094,-191.706354,0.000248,7]
[394339028,1763471452103,-151.0,0.000248,7]
[394339029,1763471452112,-151.0,0.000248,7]
[394339030,1763471452122,-151.0,0.000248,7]
[394339031,1763471452131,-1034.891128,0.000248,7]
[394339032,1763471452140,-1034.891128,0.000248,7]
[394339033,1763471452149,-1034.891128,0.000248,7]
[394339034,1763471452159,-1034.891118,0.000248,7]
[394339035,1763471452168,-151.0,0.000248,7]
[394339036,1763471452177,-151.0,0.000248,7]
[394339037,1763471452186,-151.0,0.000248,7]
[394339038,1763471452196,-151.0,0.000248,7]
[394339039,1763471452205,-151.0,0.000248,7]
[394339040,1763471452215,-151.0,0.000248,7]
[394339041,1763471452224,-151.0,0.000248,7]
[394339042,1763471452233,-151.0,0.000248,7]
[394339043,1763471452243,-151.0,0.000248,7]
[394339044,1763471452252,-151.0,0.000248,7]
[394339045,1763471452261,-188.70561,0.000248,7]
[394339046,1763471452270,-188.70561,0.000248,7]
[394339047,1763471452279,-168.061494,0.000248,7]
[394339048,1763471452288,-188.70561,0.000248,7]
[394339049,1763471452297,-168.061494,0.000248,7]
[394339050,1763471452306,-188.705606,0.000248,7]
[394339051,1763471452315,-168.061494,0.000248,7]
[394339052,1763471452325,-168.061504,0.000248,7]
[394339053,1763471452334,-151.0,0.000248,7]
[394339054,1763471452343,-151.0,0.000248,7]
[394339055,1763471452352,-151.0,0.000248,7]
[394339056,1763471452361,-151.0,0.000248,7]
[394339057,1763471452370,-151.0,0.000248,7]
[394339058,1763471452379,-169.170275,0.000248,7]
[394339059,1763471452388,-151.0,0.000248,7]
[394339060,1763471452397,-170.210898,0.000248,7]
[394339061,1763471452406,-208.05667,0.000248,7]
[394339062,1763471452415,-258.127581,0.000248,7]
[394339063,1763471452424,-208.05667,0.000248,7]
[394339064,1763471452433,-208.05667,0.000248,7]
[394339065,1763471452442,-208.056674,0.000248,7]
[394339066,1763471452450,-206.880074,0.000248,7]
[394339067,1763471452459,-151.0,0.000248,7]
[394339068,1763471452468,-151.0,0.000248,7]
[394339069,1763471452478,-603.271922,0.000248,7]
[394339070,1763471452487,-603.271922,0.000248,7]
[394339071,1763471452496,-603.271922,0.000248,7]
[394339072,1763471452506,-603.271912,0.000248,7]
[394339073,1763471452515,-151.0,0.000248,7]
[394339074,1763471452524,-194.038784,0.000248,7]
[394339075,1763471452533,-214.576605,0.000248,7]
[394339076,1763471452543,-151.0,0.000248,7]
[394339077,1763471452552,-194.038784,0.000248,7]
[394339078,1763471452561,-214.576605,0.000248,7]
[394339079,1763471452570,-151.0,0.000248,7]
[394339080,1763471452579,-194.038784,0.000248,7]
[394339081,1763471452588,-214.576605,0.000248,7]
[394339082,1763471452597,-194.038781,0.000248,7]
[394339083,1763471452606,-214.576611,0.000248,7]
[394339084,1763471452615,-151.0,0.000248,7]
[394339085,1763471452624,-151.0,0.000248,7]
[394339086,1763471452635,-151.0,0.000248,7]
[394339087,1763471452644,-151.0,0.000248,7]
[394339088,1763471452653,-151.0,0.000248,7]
[394339089,1763471452662,-151.0,0.000248,7]
[394339090,1763471452672,-212.498357,0.000248,7]
[394339091,1763471452680,-228.185628,0.000248,7]
[394339092,1763471452694,-190.785166,0.000248,7]
[394339093,1763471452703,-212.498357,0.000248,7]
[394339094,1763471452712,-190.785166,0.000248,7]
[394339095,1763471452721,-212.498357,0.000248,7]
[394339096,1763471452730,-190.785166,0.000248,7]
[394339097,1763471452742,-212.498365,0.000248,7]
[394339098,1763471452750,-190.785173,0.000248,7]
[394339099,1763471452759,-151.0,0.000248,7]
[394339100,1763471452769,-151.0,0.000248,7]
[394339101,1763471452778,-151.0,0.000248,7]
[394339102,1763471452787,-151.0,0.000248,7]
[394339103,1763471452796,-151.0,0.000248,7]
[394339104,1763471452805,-151.0,0.000248,7]
[394339105,1763471452814,-151.0,0.000248,7]
[394339106,1763471452823,-151.0,0.000248,7]
[394339107,1763471452833,-459292.818508,0.000248,3]
[394339108,1763471452842,-151.0,0.000248,7]
[394339109,1763471452851,-151.0,0.000248,7]
[394339110,1763471452861,-151.0,0.000248,7]
[394339111,1763471452870,-294.046528,0.000248,7]
[394339112,1763471452880,-151.0,0.000248,7]
[394339113,1763471452889,-151.0,0.000248,7]
[394339114,1763471452898,-151.0,0.000248,7]
[394339115,1763471452907,-151.0,0.000248,7]
[394339116,1763471452918,-379.197318,0.000248,7]
[394339117,1763471452928,-236.285315,0.000248,7]
[394339118,1763471452937,-379.197318,0.000248,7]
[394339119,1763471452947,-236.285315,0.000248,7]
[394339120,1763471452955,-379.197318,0.000248,7]
[394339121,1763471452964,-236.285315,0.000248,7]
[394339122,1763471452973,-379.197318,0.000248,7]
[394339123,1763471452982,-236.285315,0.000248,7]
[394339124,1763471452992,-151.0,0.000248,7]
[394339125,1763471453001,-151.0,0.000248,7]
[394339126,1763471453010,-245.93764,0.000248,7]
[394339127,1763471453020,-151.0,0.000248,7]
[394339128,1763471453029,-187.304561,0.000248,7]
[394339129,1763471453039,-151.0,0.000248,7]
[394339130,1763471453048,-151.0,0.000248,7]
[394339131,1763471453058,-151.0,0.000248,7]
[394339132,1763471453067,-219.400037,0.000248,7]
[394339133,1763471453076,-281.44887,0.000248,7]
[394339134,1763471453085,-219.400037,0.000248,7]
[394339135,1763471453094,-151.0,0.000248,7]
[394339136,1763471453103,-151.0,0.000248,7]
[394339137,1763471453113,-219.400037,0.000248,7]
[394339138,1763471453121,-151.0,0.000248,7]
[394339139,1763471453131,-7542.22333095,0.00024804,2]
[394339140,1763471453141,-151.0,0.000249,7]
[394339141,1763471453151,-151.0,0.000249,7]
[394339142,1763471453160,-199.866648,0.000249,7]
[394339143,1763471453169,-151.0,0.000249,7]
[394339144,1763471453178,-199.866648,0.000249,7]
[394339145,1763471453184,-151.0,0.000249,7]
[394339146,1763471453192,-667.718292,0.000249,7]
[394339147,1763471453202,-151.0,0.000249,7]
[394339148,1763471453212,-199.866648,0.000249,7]
[394339149,1763471453221,-667.718292,0.000249,7]
[394339150,1763471453232,-199.866655,0.000249,7]
[394339151,1763471453241,-667.718292,0.000249,7]
[394339152,1763471453251,-667.71829693,0.000249,7]
[394339153,1763471453261,-328.264286,0.000249,7]
[394339154,1763471453270,-328.264286,0.000249,7]
[394339155,1763471453280,-328.264286,0.000249,7]
[394339156,1763471453289,-328.264278,0.000249,7]
[394339157,1763471453299,-605078.498329,0.000249,3]
[394339158,1763471453309,-151.0,0.000249,7]
[394339159,1763471453320,-151.0,0.000249,7]
[394339160,1763471453330,-151.0,0.000249,7]
[394339161,1763471453339,-151.0,0.000249,7]
[394339162,1763471453349,-151.0,0.000249,7]
[394339163,1763471453358,-152.585105,0.000249,7]
[394339164,1763471453368,-285.69320133,0.000249,7]
[394339165,1763471453377,-379.197318,0.000249,7]
[394339166,1763471453386,-236.285315,0.000249,7]
[394339167,1763471453396,-379.197318,0.000249,7]
[394339168,1763471453405,-236.285315,0.000249,7]
[394339169,1763471453414,-379.197318,0.000249,7]
[394339170,1763471453423,-236.285315,0.000249,7]
[394339171,1763471453432,-379.197308,0.000249,7]
[394339172,1763471453441,-236.285323,0.000249,7]
[394339173,1763471453451,-151.0,0.000249,7]
[394339174,1763471453461,-151.0,0.000249,7]
[394339175,1763471453470,-202.076874,0.000249,7]
[394339176,1763471453481,-151.0,0.000249,7]
[394339177,1763471453491,-151.0,0.000249,7]
[394339178,1763471453500,-151.0,0.000249,7]
[394339179,1763471453509,-219.400037,0.000249,7]
[394339180,1763471453519,-219.400037,0.000249,7]
[394339181,1763471453530,-151.0,0.000249,7]
[394339182,1763471453539,-219.400037,0.000249,7]
[394339183,1763471453548,-220.186159,0.000249,7]
[394339184,1763471453557,-151.0,0.00024904,7]
[394339185,1763471453567,-171.934768,0.00024904,7]
[394339186,1763471453576,-171.934768,0.00024904,7]
[394339187,1763471453585,-171.934768,0.00024904,7]
[394339188,1763471453594,-171.934768,0.00024904,7]
[394339189,1763471453604,-738.782703,0.00024904,7]
[394339190,1763471453613,-738.782703,0.00024904,7]
[394339191,1763471453622,-151.0,0.00024904,7]
[394339192,1763471453631,-738.782703,0.00024904,7]
[394339193,1763471453641,-738.782707,0.00024904,7]
[394339194,1763471453650,-151.0,0.00024904,7]
[394339195,1763471453659,-151.0,0.00024904,7]
[394339196,1763471453668,-151.0,0.00024904,7]
[394339197,1763471453678,-151.0,0.00024904,7]
[394339198,1763471453688,-151.0,0.00024904,7]
[394339199,1763471453701,-594.220357,0.00024904,7]
[394339200,1763471453711,-594.220357,0.00024904,7]
[394339201,1763471453721,-594.220357,0.00024904,7]
[394339202,1763471453731,-594.220352,0.00024904,7]
[394339203,1763471453741,-6453.0,0.00024904,2]
[394339204,1763471453751,-4752.25128936,0.00025,3]
[394339205,1763471453760,-436.25375508,0.00025,2]
[394339206,1763471453771,-450.0,0.00025,2]
[394339207,1763471453780,-8852.03,0.000253,7]
[394339208,1763471453789,-400.0,0.00025452,2]
[394339209,1763471453798,-240.38343912,0.00025773,2]
[394339210,1763471453808,-293.69798957,0.00025789,2]
[394339211,1763471453818,-1144.71821,0.00026,2]
[394339212,1763471453827,-728.09,0.00026049,2]
[394339213,1763471453836,-700.6,0.00026049,2]
[394339214,1763471453845,-700.6,0.00026049,2]
[394339215,1763471453855,-700.6,0.00026049,2]
[394339216,1763471453988,-458.18,0.00026049,2]
[394339217,1763471453997,-211.74376832,0.00026137,2]
[394339218,1763471454008,-2258.0,0.00026565,2]
[394339219,1763471454017,-823.52,0.00026676,2]
[394339220,1763471454027,-205.79,0.00026916,7]
[394339221,1763471454036,-170.34,0.00026973,2]
[394339222,1763471454046,-500.0,0.00027,2]
[394339223,1763471454055,-81977.8003,0.0002722,30]
[394339224,1763471454064,-297.47685028,0.000273,30]
[394339225,1763471454074,-700.6,0.00027342,2]
[394339226,1763471454083,-478.46,0.00027342,2]
[394339227,1763471454093,-478.46,0.00027342,2]
[394339228,1763471454103,-700.6,0.00027342,2]
[394339229,1763471454112,-700.6,0.00027342,2]
[394339230,1763471454123,-478.46,0.00027342,2]
[394339231,1763471454132,-700.6,0.00027342,2]
[394339232,1763471454142,-478.46,0.00027342,2]
[394339233,1763471454152,-700.6,0.00027342,2]
[394339234,1763471454161,-478.46,0.00027342,2]
[394339235,1763471454171,-478.46,0.00027342,2]
[394339236,1763471454181,-700.6,0.00027342,2]
[394339237,1763471454191,-700.6,0.00027342,2]
[394339238,1763471454201,-700.6,0.00027342,2]
[394339239,1763471454212,-700.6,0.00027342,2]
[394339240,1763471454222,-478.46,0.00027342,2]
[394339241,1763471454231,-1008.51,0.00027342,2]
[394339242,1763471454241,-6191.0,0.0002738,2]
[394339243,1763471454251,-204.70789218,0.00027397,2]
[394339244,1763471454260,-500.0,0.00027397,2]
[394339245,1763471454270,-159.81,0.000274,7]
[394339246,1763471454279,-2923.66,0.000274,2]
[394339247,1763471454288,-150.0,0.00027521,2]
[394339248,1763471454298,-150.0,0.00027521,2]
[394339249,1763471454309,-150.0,0.00027521,2]
[394339250,1763471454319,-150.0,0.00027521,2]
[394339251,1763471454328,-150.0,0.00027521,2]
[394339252,1763471454337,-1191.0,0.00027604,2]
[394339253,1763471454348,-907.0,0.00027604,2]
[394339254,1763471454358,-1604.0,0.00027621,2]
[394339255,1763471454368,-4238.19,0.00027671,2]
[394339256,1763471454378,-1144.7182,0.00028,2]
[394339257,1763471454388,-8852.03,0.000281,7]
[394339258,1763471454399,-2000.0,0.000281,2]
[394339259,1763471454411,-479.30025826,0.000281,30]
[394339260,1763471454420,-240.38343912,0.00028405,2]
[394339261,1763471454430,-150.0,0.00028613,30]
[394339262,1763471454440,-172.82183757,0.00028613,30]
[394339263,1763471454451,-3162.0,0.00029059,2]
[394339264,1763471454460,-500.0,0.0002913,5]
[394339265,1763471454470,-418.96,0.00029272,30]
[394339266,1763471454485,-550.38,0.00029274,2]
[394339267,1763471454496,-550.38,0.00029274,2]
[394339268,1763471454505,-550.38,0.00029274,2]
[394339269,1763471454517,-550.38,0.00029274,2]
[394339270,1763471454528,-205.79,0.00029374,30]
[394339271,1763471454538,-162.97814708,0.00029476,2]
[394339272,1763471454548,-150.0,0.00029517,30]
[394339273,1763471454557,-150.0,0.00029517,30]
[394339274,1763471454566,-150.0,0.00029517,30]
[394339275,1763471454575,-150.0,0.00029517,30]
[394339276,1763471454584,-150.0,0.00029517,30]
[394339277,1763471454593,-150.0,0.00029517,30]
[394339278,1763471454603,-150.0,0.00029517,30]
[394339279,1763471454612,-150.0,0.00029517,30]
[394339280,1763471454621,-150.0,0.00029517,30]
[394339281,1763471454630,-156.50190869,0.00029517,30]
[394339282,1763471454639,-219.36,0.00029584,2]
[394339283,1763471454648,-550.38,0.00029603,2]
[394339284,1763471454658,-550.38,0.00029603,2]
[394339285,1763471454667,-293.69798957,0.00029734,2]
[394339286,1763471454677,-157.81982911,0.0003,7]
[394339287,1763471454689,-10024.76089675,0.0003,2]
[394339288,1763471454700,-896.38,0.0003,15]
[394339289,1763471454710,-899.5,0.00030137,2]
[394339290,1763471454720,-6697.60654757,0.00030137,120]
[394339291,1763471454731,-6025.2926284,0.00030137,120]
[394339292,1763471454740,-150.0,0.00030137,30]
[394339293,1763471454751,-550.38,0.00030425,2]
[394339294,1763471454761,-550.38,0.00030425,2]
[394339295,1763471454770,-550.38,0.00030425,2]
[394339296,1763471454780,-550.38,0.00030425,2]
[394339297,1763471454792,-550.38,0.00030425,2]
[394339298,1763471454801,-550.38,0.00030425,2]
[394339299,1763471454811,-550.38,0.00030425,2]
[394339300,1763471454821,-550.38,0.00030425,2]
[394339301,1763471454830,-550.38,0.00030425,2]
[394339302,1763471454839,-550.38,0.00030425,2]
[394339303,1763471454849,-550.38,0.00030425,2]
[394339304,1763471454859,-550.38,0.00030425,2]
[394339305,1763471454868,-550.38,0.00030425,2]
[394339306,1763471454877,-550.38,0.00030425,2]
[394339307,1763471454886,-550.38,0.00030425,2]
[394339308,1763471454895,-550.38,0.00030425,2]
[394339309,1763471454904,-1100.76,0.00030425,2]
[394339310,1763471454914,-550.38,0.00030425,2]
[394339311,1763471454923,-550.38,0.00030425,2]
[394339312,1763471454932,-550.38,0.00030425,2]
[394339313,1763471454941,-550.38,0.00030425,2]
[394339314,1763471454953,-550.38,0.00030425,2]
[394339315,1763471454962,-550.38,0.00030425,2]
[394339316,1763471454972,-550.38,0.00030425,2]
[394339317,1763471454981,-550.38,0.00030425,2]
[394339318,1763471454991,-550.38,0.00030425,2]
[394339319,1763471455000,-1100.76,0.00030425,2]
[394339320,1763471455010,-1100.76,0.00030425,2]
[394339321,1763471455019,-550.38,0.00030425,2]
[394339322,1763471455028,-550.38,0.00030425,2]
[394339323,1763471455037,-550.38,0.00030425,2]
[394339324,1763471455047,-1100.76,0.00030425,2]
[394339325,1763471455057,-550.38,0.00030425,2]
[394339326,1763471455066,-550.38,0.00030425,2]
[394339327,1763471455076,-550.38,0.00030425,2]
[394339328,1763471455085,-550.38,0.00030425,2]
[394339329,1763471455095,-550.38,0.00030425,2]
[394339330,1763471455104,-550.38,0.00030425,2]
[394339331,1763471455113,-550.38,0.00030425,2]
[394339332,1763471455123,-550.38,0.00030425,2]
[394339333,1763471455132,-550.38,0.00030425,2]
[394339334,1763471455142,-550.38,0.00030425,2]
[394339335,1763471455152,-1100.76,0.00030425,2]
[394339336,1763471455162,-550.38,0.00030425,2]
[394339337,1763471455172,-550.38,0.00030425,2]
[394339338,1763471455181,-550.38,0.00030425,2]
[394339339,1763471455191,-550.38,0.00030425,2]
[394339340,1763471455201,-1100.76,0.00030425,2]
[394339341,1763471455211,-550.38,0.00030425,2]
[394339342,1763471455221,-550.38,0.00030425,2]
[394339343,1763471455230,-550.38,0.00030425,2]
[394339344,1763471455240,-550.38,0.00030425,2]
[394339345,1763471455250,-550.38,0.00030425,2]
[394339346,1763471455259,-1100.54,0.00030425,2]
[394339347,1763471455268,-255.62,0.00030425,2]
[394339348,1763471455277,-550.38,0.00030425,2]
[394339349,1763471455288,-550.38,0.00030425,2]
[394339350,1763471455298,-550.38,0.00030425,2]
[394339351,1763471455307,-151.49182923,0.00030521,30]
[394339352,1763471455316,-1191.0,0.00030604,2]
[394339353,1763471455326,-907.0,0.00030604,2]
[394339354,1763471455335,-1152.926,0.00030621,2]
[394339355,1763471455345,-210.32648237,0.00030826,2]
[394339356,1763471455354,-38108.42790323,0.00030888,60]
[394339357,1763471455364,-2923.66,0.000309,2]
[394339358,1763471455373,-479.30025826,0.00031,120]
[394339359,1763471455382,-240.38343912,0.00031037,15]
[394339360,1763471455392,-330.95,0.00031121,2]
[394339361,1763471455401,-235.71991702,0.00031282,2]
[394339362,1763471455410,-917.01558232,0.00031351,2]
[394339363,1763471455419,-191.59,0.00031507,120]
[394339364,1763471455429,-447.79,0.00031575,2]
[394339365,1763471455439,-444.0,0.00031787,2]
[394339366,1763471455448,-2000.0,0.000318,2]
[394339367,1763471455458,-205.79,0.00031832,30]
[394339368,1763471455467,-300.0,0.00031942,2]
[394339369,1763471455476,-169.4,0.00031942,2]
[394339370,1763471455486,-150.0,0.00032168,7]
[394339371,1763471455497,-150.0,0.00032168,7]
[394339372,1763471455506,-150.0,0.00032168,7]
[394339373,1763471455516,-150.0,0.00032168,7]
[394339374,1763471455526,-150.0,0.00032168,7]
[394339375,1763471455535,-150.0,0.00032168,7]
[394339376,1763471455545,-244.218,0.00032168,7]
[394339377,1763471455554,-8852.03,0.000326,7]
[394339378,1763471455564,-150.0,0.00033,90]
[394339379,1763471455574,-175.0,0.00033,30]
[394339380,1763471455583,-633.78434648,0.0003315,7]
[394339381,1763471455593,-823.52,0.00033165,2]
[394339382,1763471455606,-6355.51844404,0.00033346,2]
[394339383,1763471455616,-1191.0,0.00033604,2]
[394339384,1763471455626,-907.0,0.00033604,2]
[394339385,1763471455637,-240.38343912,0.00033669,15]
[394339386,1763471455647,-293.69798957,0.00033678,2]
[394339387,1763471455657,-2923.66,0.000339,2]
[394339388,1763471455666,-1000.0,0.00034,120]
[394339389,1763471455675,-300.0,0.00034,120]
[394339390,1763471455689,-2000.0,0.00034065,120]
[394339391,1763471455700,-205.79,0.00034291,30]
[394339392,1763471455709,-418.96,0.00034319,30]
[394339393,1763471455719,-1324.90230867,0.000345,14]
[394339394,1763471455728,-152.0,0.00034823,3]
[394339395,1763471455738,-175.0,0.00034888,30]
[394339396,1763471455747,-200.00346523,0.000349,120]
[394339397,1763471455756,-1000.0,0.00035,15]
[394339398,1763471455768,-402.40204642,0.00035,2]
[394339399,1763471455777,-1222.66033566,0.00035,2]
[394339400,1763471455786,-388.43879605,0.00035,30]
[394339401,1763471455796,-200.0,0.00035,120]
[394339402,1763471455805,-500.18325099,0.00035,2]
[394339403,1763471455815,-1000.0,0.00035,120]
[394339404,1763471455826,-8981.39781541,0.00035,30]
[394339405,1763471455836,-150.0,0.00035,2]
[394339406,1763471455846,-174252.0959,0.0003522,30]
[394339407,1763471455856,-162.9781471,0.00035371,2]
[394339408,1763471455866,-2000.0,0.000355,2]
[394339409,1763471455875,-500.0,0.00035616,2]
[394339410,1763471455887,-207.6,0.00035616,2]
[394339411,1763471455899,-887.9840187,0.0003562,30]
[394339412,1763471455908,-887.9840187,0.0003562,30]
[394339413,1763471455919,-887.9840187,0.0003562,30]
[394339414,1763471455930,-887.9840187,0.0003562,30]
[394339415,1763471455939,-887.9840187,0.0003562,30]
[394339416,1763471455949,-887.9840187,0.0003562,30]
[394339417,1763471455958,-887.9840187,0.0003562,30]
[394339418,1763471455967,-887.9840187,0.0003562,30]
[394339419,1763471455977,-887.9840187,0.0003562,30]
[394339420,1763471455987,-887.9840187,0.0003562,30]
[394339421,1763471455996,-887.9840187,0.0003562,30]
[394339422,1763471456005,-887.9840187,0.0003562,30]
[394339423,1763471456015,-887.9840187,0.0003562,30]
[394339424,1763471456025,-887.9840187,0.0003562,30]
[394339425,1763471456035,-887.9840187,0.0003562,30]
[394339426,1763471456044,-887.9840187,0.0003562,30]
[394339427,1763471456053,-887.9840187,0.0003562,30]
[394339428,1763471456062,-887.9840187,0.0003562,30]
[394339429,1763471456072,-887.9840187,0.0003562,30]
[394339430,1763471456083,-887.98,0.0003562,30]
[394339431,1763471456092,-2071.9627103,0.0003562,30]
[394339432,1763471456101,-2071.9627103,0.0003562,30]
[394339433,1763471456113,-2071.9627103,0.0003562,30]
[394339434,1763471456123,-2071.9627103,0.0003562,30]
[394339435,1763471456133,-2071.9627103,0.0003562,30]
[394339436,1763471456143,-2071.9627103,0.0003562,30]
[394339437,1763471456153,-2071.9627103,0.0003562,30]
[394339438,1763471456162,-2071.9627103,0.0003562,30]
[394339439,1763471456172,-2071.9627103,0.0003562,30]
[394339440,1763471456182,-2071.9627103,0.0003562,30]
[394339441,1763471456191,-2071.9627103,0.0003562,30]
[394339442,1763471456201,-2071.9627103,0.0003562,30]
[394339443,1763471456211,-2071.9627103,0.0003562,30]
[394339444,1763471456220,-2071.9627103,0.0003562,30]
[394339445,1763471456229,-2071.9627103,0.0003562,30]
[394339446,1763471456239,-2071.9627103,0.0003562,30]
[394339447,1763471456248,-2071.9627103,0.0003562,30]
[394339448,1763471456257,-2071.9627103,0.0003562,30]
[394339449,1763471456267,-2071.9627103,0.0003562,30]
[394339450,1763471456276,-2071.96,0.0003562,30]
[394339451,1763471456285,-2008.50364644,0.0003562,30]
[394339452,1763471456295,-2008.50364644,0.0003562,30]
[394339453,1763471456304,-2008.50364644,0.0003562,30]
[394339454,1763471456314,-2008.50364644,0.0003562,30]
[394339455,1763471456323,-2008.50364644,0.0003562,30]
[394339456,1763471456332,-2008.50364644,0.0003562,30]
[394339457,1763471456341,-2008.50364644,0.0003562,30]
[394339458,1763471456350,-2008.50364644,0.0003562,30]
[394339459,1763471456359,-2008.50364644,0.0003562,30]
[394339460,1763471456368,-2008.50364644,0.0003562,30]
[394339461,1763471456378,-2008.50364644,0.0003562,30]
[394339462,1763471456387,-2008.50364644,0.0003562,30]
[394339463,1763471456396,-2008.50364644,0.0003562,30]
[394339464,1763471456406,-2008.50364644,0.0003562,30]
[394339465,1763471456423,-2008.50364644,0.0003562,30]
[394339466,1763471456436,-2008.50364644,0.0003562,30]
[394339467,1763471456449,-2008.50364644,0.0003562,30]
[394339468,1763471456457,-2008.50364644,0.0003562,30]
[394339469,1763471456466,-2008.50364644,0.0003562,30]
[394339470,1763471456475,-2008.5,0.0003562,30]
[394339471,1763471456484,-4686.50850835,0.0003562,30]
[394339472,1763471456494,-4686.50850835,0.0003562,30]
[394339473,1763471456503,-4686.50850835,0.0003562,30]
[394339474,1763471456513,-4686.50850835,0.0003562,30]
[394339475,1763471456522,-4686.50850835,0.0003562,30]
[394339476,1763471456532,-4686.50850835,0.0003562,30]
[394339477,1763471456541,-4686.50850835,0.0003562,30]
[394339478,1763471456551,-4686.50850835,0.0003562,30]
[394339479,1763471456559,-4686.50850835,0.0003562,30]
[394339480,1763471456568,-4686.50850835,0.0003562,30]
[394339481,1763471456578,-4686.50850835,0.0003562,30]
[394339482,1763471456587,-4686.50850835,0.0003562,30]
[394339483,1763471456595,-4686.50850835,0.0003562,30]
[394339484,1763471456604,-4686.50850835,0.0003562,30]
[394339485,1763471456613,-4686.50850835,0.0003562,30]
[394339486,1763471456622,-4686.50850835,0.0003562,30]
[394339487,1763471456631,-4686.50850835,0.0003562,30]
[394339488,1763471456640,-4686.50850835,0.0003562,30]
[394339489,1763471456649,-4686.50850835,0.0003562,30]
[394339490,1763471456658,-4686.5,0.0003562,30]
[394339491,1763471456668,-1962.63868748,0.0003562,30]
[394339492,1763471456677,-1962.63868748,0.0003562,30]
[394339493,1763471456686,-1962.63868748,0.0003562,30]
[394339494,1763471456699,-1962.63868748,0.0003562,30]
[394339495,1763471456708,-1962.63868748,0.0003562,30]
[394339496,1763471456718,-1962.63868748,0.0003562,30]
[394339497,1763471456728,-1962.63868748,0.0003562,30]
[394339498,1763471456739,-1962.63868748,0.0003562,30]
[394339499,1763471456749,-1962.63868748,0.0003562,30]
[394339500,1763471456861,-1962.63868748,0.0003562,30]
[394339501,1763471456881,-1962.63868748,0.0003562,30]
[394339502,1763471456890,-1962.63868748,0.0003562,30]
[394339503,1763471456899,-1962.63868748,0.0003562,30]
[394339504,1763471456908,-1962.63868748,0.0003562,30]
[394339505,1763471456918,-1962.63868748,0.0003562,30]
[394339506,1763471456927,-1962.63868748,0.0003562,30]
[394339507,1763471456936,-1962.63868748,0.0003562,30]
[394339508,1763471456945,-1962.63868748,0.0003562,30]
[394339509,1763471456955,-1962.63868748,0.0003562,30]
[394339510,1763471456964,-1962.63,0.0003562,30]
[394339511,1763471456973,-4579.49027078,0.0003562,30]
[394339512,1763471456982,-4579.49027078,0.0003562,30]